fUSD/lending_fUSD_20241222
["ID","MTS","AMOUNT","RATE_DAILY","PERIOD"]
[346349848,1734904240276,-3299.65,0.00019178,2]
[346349849,1734904240285,-871.91,0.00019178,2]
[346349850,1734904240294,-500.0,0.00019178,2]
[346349851,1734904240304,-500.0,0.00019178,2]
[346349852,1734904240313,-1115.9,0.00019178,2]
[346349853,1734904240323,-500.0,0.00019178,2]
[346349854,1734904240332,-1779.67,0.00019178,2]
[346349855,1734904240341,-3027.82,0.00019178,2]
[346349856,1734904240349,-3956.61,0.00019178,2]
[346349857,1734904240358,-500.0,0.00019178,2]
[346349858,1734904240367,-500.0,0.00019178,2]
[346349859,1734904240376,-4670.87,0.00019178,2]
[346349860,1734904240385,-1583.66,0.00019178,2]
[346349861,1734904240394,-2504.5,0.00019178,2]
[346349862,1734904240405,-500.0,0.00019178,2]
[346349863,1734904240413,-500.0,0.00019178,2]
[346349864,1734904240422,-500.0,0.00019178,2]
[346349865,1734904240431,-500.0,0.00019178,2]
[346349866,1734904240441,-508.89,0.00019178,2]
[346349867,1734904240450,-500.0,0.00019178,2]
[346349868,1734904240459,-5645.17,0.00019178,2]
[346349869,1734904240468,-2005.93,0.00019178,2]
[346349870,1734904240477,-9585.12,0.00019178,2]
[346349871,1734904240486,-800.5,0.00019178,2]
[346349872,1734904240495,-681.33,0.00019178,2]
[346349873,1734904240503,-500.0,0.00019178,2]
[346349874,1734904240512,-351.35294587,0.00019178,2]
[346349875,1734904240523,-1000.0,0.00019178,2]
[346349876,1734904240533,-1418.35,0.00019178,2]
[346349878,1734904240542,-4374.55,0.00019178,2]
[346349880,1734904240551,-500.0,0.00019178,2]
[346349882,1734904240561,-1049.76,0.00019178,2]
[346349884,1734904240570,-884.28,0.00019178,2]
[346349886,1734904240580,-1410.47,0.00019178,2]
[346349888,1734904240589,-500.0,0.00019178,2]
[346349890,1734904240599,-500.0,0.00019178,2]
[346349894,1734904240808,-3328.51,0.00019178,2]
[346349895,1734904240819,-500.0,0.00019178,2]
[346349896,1734904240830,-2276.9,0.00019178,2]
[346349897,1734904240840,-2876.91,0.00019178,2]
[346349898,1734904240849,-1257.59,0.00019178,2]
[346349899,1734904240859,-762.53,0.00019178,2]
[346349900,1734904240869,-2679.05,0.00019178,2]
[346349901,1734904240879,-1159.59,0.00019178,2]
[346349902,1734904240888,-500.0,0.00019178,2]
[346349903,1734904240897,-2343.35,0.00019178,2]
[346349904,1734904240906,-500.0,0.00019178,2]
[346349905,1734904240915,-1461.87,0.00019178,2]
[346349906,1734904240925,-500.0,0.00019178,2]
[346349907,1734904240934,-1830.93,0.00019178,2]
[346349908,1734904240944,-543.79,0.00019178,2]
[346349909,1734904240953,-500.0,0.00019178,2]
[346349910,1734904240963,-873.48,0.00019178,2]
[346349911,1734904240972,-500.0,0.00019178,2]
[346349912,1734904240982,-500.0,0.00019178,2]
[346349913,1734904240992,-2106.53,0.00019178,2]
[346349914,1734904241003,-6973.64,0.00019178,2]
[346349915,1734904241012,-500.0,0.00019178,2]
[346349916,1734904241023,-500.0,0.00019178,2]
[346349917,1734904241032,-642.42,0.00019178,2]
[346349918,1734904241042,-759.54,0.00019178,2]
[346349919,1734904241051,-500.0,0.00019178,2]
[346349920,1734904241061,-500.0,0.00019178,2]
[346349921,1734904241070,-500.0,0.00019178,2]
[346349922,1734904241080,-515.7,0.00019178,2]
[346349923,1734904241089,-791.71,0.00019178,2]
[346349924,1734904241098,-592.49,0.00019178,2]
[346349925,1734904241107,-893.89,0.00019178,2]
[346349926,1734904241117,-500.0,0.00019178,2]
[346349927,1734904241126,-500.0,0.00019178,2]
[346349928,1734904241136,-1432.83,0.00019178,2]
[346349929,1734904241145,-500.0,0.00019178,2]
[346349930,1734904241155,-1088.4,0.00019178,2]
[346349931,1734904241165,-500.0,0.00019178,2]
[346349932,1734904241174,-500.0,0.00019178,2]
[346349933,1734904241184,-1058.69,0.00019178,2]
[346349934,1734904241193,-500.0,0.00019178,2]
[346349935,1734904241203,-1712.94,0.00019178,2]
[346349936,1734904241212,-500.0,0.00019178,2]
[346349937,1734904241221,-980.04,0.00019178,2]
[346349938,1734904241230,-500.0,0.00019178,2]
[346349939,1734904241239,-500.0,0.00019178,2]
[346349940,1734904241248,-1841.8,0.00019178,2]
[346349941,1734904241257,-500.0,0.00019178,2]
[346349942,1734904241266,-1628.46,0.00019178,2]
[346349943,1734904241276,-500.0,0.00019178,2]
[346349944,1734904241285,-500.0,0.00019178,2]
[346349945,1734904241294,-3366.22,0.00019178,2]
[346349946,1734904241304,-634.8,0.00019178,2]
[346349947,1734904241313,-2173.05,0.00019178,2]
[346349948,1734904241322,-797.50604326,0.00019208,2]
[346349949,1734904241331,-797.50604326,0.00019251,2]
[346349950,1734904241341,-363.61007425,0.00019261,2]
[346349951,1734904241351,-797.50604326,0.00019294,2]
[346349952,1734904241360,-23060.5127,0.00019324,2]
[346349953,1734904241369,-797.50604326,0.00019338,2]
[346349954,1734904241379,-363.61007425,0.00019352,2]
[346349955,1734904241388,-202.03,0.00019376,2]
[346349956,1734904241397,-202.6,0.00019376,2]
[346349957,1734904241407,-797.50604326,0.00019381,2]
[346349958,1734904241416,-797.50604326,0.00019424,2]
[346349959,1734904241425,-363.61007425,0.00019443,2]
[346349960,1734904241435,-500.0,0.00019451,2]
[346349961,1734904241444,-500.0,0.00019451,2]
[346349962,1734904241453,-479.75171763,0.00019451,2]
[346349963,1734904241462,-695.9,0.00019451,2]
[346349964,1734904241471,-695.9,0.00019451,2]
[346349965,1734904241481,-500.0,0.00019452,2]
[346349966,1734904241490,-500.0,0.00019452,2]
[346349967,1734904241500,-500.0,0.00019452,2]
[346349968,1734904241509,-500.0,0.00019452,2]
[346349969,1734904241519,-500.0,0.00019452,2]
[346349970,1734904241528,-2751.59,0.00019452,2]
[346349971,1734904241537,-500.0,0.00019452,2]
[346349972,1734904241547,-783.669869,0.00019452,2]
[346349973,1734904241556,-1319.625773,0.00019452,2]
[346349974,1734904241565,-416.97798538,0.00019452,2]
[346349975,1734904241574,-500.0,0.00019452,2]
[346349976,1734904241583,-500.0,0.00019452,2]
[346349977,1734904241593,-500.0,0.00019452,2]
[346349978,1734904241603,-310.07061356,0.00019452,2]
[346349979,1734904241612,-500.0,0.00019452,2]
[346349980,1734904241622,-500.0,0.00019452,2]
[346349981,1734904241631,-500.0,0.00019452,2]
[346349982,1734904241640,-500.0,0.00019452,2]
[346349983,1734904241649,-500.0,0.00019452,2]
[346349984,1734904241659,-280.67250609,0.00019452,2]
[346349985,1734904241668,-500.0,0.00019452,2]
[346349986,1734904241677,-500.0,0.00019452,2]
[346349987,1734904241686,-408.22531967,0.00019452,2]
[346349988,1734904241695,-500.0,0.00019452,2]
[346349989,1734904241705,-500.0,0.00019452,2]
[346349990,1734904241714,-500.0,0.00019452,2]
[346349991,1734904241723,-572.0420147,0.00019452,2]
[346349992,1734904241732,-500.0,0.00019452,2]
[346349993,1734904241741,-500.0,0.00019452,2]
[346349994,1734904241751,-500.0,0.00019452,2]
[346349995,1734904241760,-500.0,0.00019452,2]
[346349996,1734904241770,-500.0,0.00019452,2]
[346349997,1734904241779,-500.0,0.00019452,2]
[346349998,1734904241788,-500.0,0.00019452,2]
[346349999,1734904241798,-500.0,0.00019452,2]
[346350000,1734904241807,-500.0,0.00019452,2]
[346350001,1734904241816,-500.0,0.00019452,2]
[346350002,1734904241825,-1474.22,0.00019452,2]
[346350003,1734904241835,-500.0,0.00019452,2]
[346350004,1734904241844,-500.0,0.00019452,2]
[346350005,1734904241854,-500.0,0.00019452,2]
[346350006,1734904241863,-500.0,0.00019452,2]
[346350007,1734904241873,-500.0,0.00019452,2]
[346350008,1734904241882,-791.89,0.00019452,2]
[346350009,1734904241891,-500.0,0.00019452,2]
[346350010,1734904241900,-500.0,0.00019452,2]
[346350011,1734904241910,-500.0,0.00019452,2]
[346350012,1734904241919,-500.0,0.00019452,2]
[346350013,1734904241928,-500.0,0.00019452,2]
[346350014,1734904241937,-500.0,0.00019452,2]
[346350015,1734904241947,-500.0,0.00019452,2]
[346350016,1734904241956,-500.0,0.00019452,2]
[346350017,1734904241966,-500.0,0.00019452,2]
[346350018,1734904241975,-500.0,0.00019452,2]
[346350019,1734904241984,-500.0,0.00019452,2]
[346350020,1734904241996,-483.77930122,0.00019452,2]
[346350021,1734904242006,-500.0,0.00019452,2]
[346350022,1734904242015,-613.26,0.00019452,2]
[346350023,1734904242026,-500.0,0.00019452,2]
[346350024,1734904242036,-500.0,0.00019452,2]
[346350025,1734904242045,-500.0,0.00019452,2]
[346350026,1734904242055,-500.0,0.00019452,2]
[346350027,1734904242064,-500.0,0.00019452,2]
[346350028,1734904242074,-500.0,0.00019452,2]
[346350029,1734904242083,-659.87,0.00019452,2]
[346350030,1734904242093,-408.18919993,0.00019452,2]
[346350031,1734904242102,-500.0,0.00019452,2]
[346350032,1734904242112,-500.0,0.00019452,2]
[346350033,1734904242121,-561.63,0.00019452,2]
[346350034,1734904242130,-500.0,0.00019452,2]
[346350035,1734904242139,-500.0,0.00019452,2]
[346350036,1734904242148,-616.26,0.00019452,2]
[346350037,1734904242158,-500.0,0.00019452,2]
[346350038,1734904242167,-500.0,0.00019452,2]
[346350039,1734904242176,-811.64,0.00019452,2]
[346350040,1734904242186,-500.0,0.00019452,2]
[346350041,1734904242195,-500.0,0.00019452,2]
[346350042,1734904242204,-500.0,0.00019452,2]
[346350043,1734904242213,-500.0,0.00019452,2]
[346350044,1734904242222,-500.0,0.00019452,2]
[346350045,1734904242230,-290.61677945,0.00019452,2]
[346350046,1734904242240,-500.0,0.00019452,2]
[346350047,1734904242249,-695.43,0.00019452,2]
[346350048,1734904242258,-500.0,0.00019452,2]
[346350049,1734904242267,-500.0,0.00019452,2]
[346350050,1734904242278,-500.0,0.00019452,2]
[346350051,1734904242287,-500.0,0.00019452,2]
[346350052,1734904242297,-500.0,0.00019452,2]
[346350053,1734904242306,-500.0,0.00019452,2]
[346350054,1734904242315,-500.0,0.00019452,2]
[346350055,1734904242324,-500.0,0.00019452,2]
[346350056,1734904242333,-500.0,0.00019452,2]
[346350057,1734904242343,-720.96,0.00019452,2]
[346350058,1734904242352,-500.0,0.00019452,2]
[346350059,1734904242362,-500.0,0.00019452,2]
[346350060,1734904242371,-500.0,0.00019452,2]
[346350061,1734904242380,-500.0,0.00019452,2]
[346350062,1734904242389,-500.0,0.00019452,2]
[346350063,1734904242399,-500.0,0.00019452,2]
[346350064,1734904242409,-500.0,0.00019452,2]
[346350065,1734904242419,-500.0,0.00019452,2]
[346350066,1734904242428,-500.0,0.00019452,2]
[346350067,1734904242438,-500.0,0.00019452,2]
[346350068,1734904242447,-500.0,0.00019452,2]
[346350069,1734904242456,-500.0,0.00019452,2]
[346350070,1734904242466,-500.0,0.00019452,2]
[346350071,1734904242475,-500.0,0.00019452,2]
[346350072,1734904242485,-500.0,0.00019452,2]
[346350073,1734904242495,-500.0,0.00019452,2]
[346350074,1734904242504,-500.0,0.00019452,2]
[346350075,1734904242514,-500.0,0.00019452,2]
[346350076,1734904242524,-500.0,0.00019452,2]
[346350077,1734904242533,-500.0,0.00019452,2]
[346350078,1734904242543,-294.77,0.00019452,2]
[346350079,1734904242553,-500.0,0.00019452,2]
[346350080,1734904242562,-500.0,0.00019452,2]
[346350081,1734904242571,-500.0,0.00019452,2]
[346350082,1734904242581,-500.0,0.00019452,2]
[346350083,1734904242590,-500.0,0.00019452,2]
[346350084,1734904242599,-1175.72,0.00019452,2]
[346350085,1734904242608,-500.0,0.00019452,2]
[346350087,1734904242617,-500.0,0.00019452,2]
[346350089,1734904242627,-500.0,0.00019452,2]
[346350091,1734904242636,-500.0,0.00019452,2]
[346350092,1734904242645,-500.0,0.00019452,2]
[346350093,1734904242655,-500.0,0.00019452,2]
[346350094,1734904242664,-500.0,0.00019452,2]
[346350095,1734904242673,-682.68,0.00019452,2]
[346350096,1734904242683,-500.0,0.00019452,2]
[346350097,1734904242693,-398.2603183,0.00019452,2]
[346350098,1734904242702,-500.0,0.00019452,2]
[346350099,1734904242711,-500.0,0.00019452,2]
[346350100,1734904242721,-500.0,0.00019452,2]
[346350101,1734904242730,-661.83,0.00019452,2]
[346350102,1734904242739,-500.0,0.00019452,2]
[346350103,1734904242750,-500.0,0.00019452,2]
[346350104,1734904242760,-500.0,0.00019452,2]
[346350106,1734904242769,-500.0,0.00019452,2]
[346350108,1734904242780,-500.0,0.00019452,2]
[346350110,1734904242790,-500.0,0.00019452,2]
[346350112,1734904242799,-500.0,0.00019452,2]
[346350114,1734904242808,-641.86,0.00019452,2]
[346350116,1734904242818,-500.0,0.00019452,2]
[346350117,1734904242827,-500.0,0.00019452,2]
[346350118,1734904242836,-500.0,0.00019452,2]
[346350119,1734904242845,-500.0,0.00019452,2]
[346350120,1734904242855,-500.0,0.00019452,2]
[346350121,1734904242865,-500.0,0.00019452,2]
[346350122,1734904242874,-500.0,0.00019452,2]
[346350123,1734904242884,-500.0,0.00019452,2]
[346350124,1734904242893,-500.0,0.00019452,2]
[346350125,1734904242903,-500.0,0.00019452,2]
[346350126,1734904242912,-232.7,0.00019452,2]
[346350127,1734904242922,-500.0,0.00019452,2]
[346350128,1734904242931,-1996.7,0.00019452,2]
[346350129,1734904242940,-500.0,0.00019452,2]
[346350130,1734904242949,-500.0,0.00019452,2]
[346350131,1734904242958,-500.0,0.00019452,2]
[346350132,1734904242967,-2270.01,0.00019452,2]
[346350133,1734904242977,-1367.25,0.00019452,2]
[346350134,1734904242987,-500.0,0.00019452,2]
[346350135,1734904242999,-29744.14,0.00019452,2]
[346350136,1734904243009,-567.92,0.00019452,2]
[346350137,1734904243018,-500.0,0.00019452,2]
[346350138,1734904243028,-372.69,0.00019452,2]
[346350139,1734904243038,-909.76,0.00019452,2]
[346350140,1734904243047,-2593.48,0.00019452,2]
[346350141,1734904243056,-500.0,0.00019452,2]
[346350142,1734904243066,-500.0,0.00019452,2]
[346350143,1734904243077,-624.24,0.00019452,2]
[346350144,1734904243087,-1861.58,0.00019452,2]
[346350145,1734904243096,-11224.97,0.00019452,2]
[346350146,1734904243106,-500.0,0.00019452,2]
[346350147,1734904243115,-500.0,0.00019452,2]
[346350148,1734904243124,-4492.31,0.00019452,2]
[346350149,1734904243134,-500.0,0.00019452,2]
[346350150,1734904243143,-1837.47,0.00019452,2]
[346350151,1734904243152,-500.0,0.00019452,2]
[346350152,1734904243161,-1313.21,0.00019452,2]
[346350153,1734904243171,-1020.98,0.00019452,2]
[346350154,1734904243180,-7599.86,0.00019452,2]
[346350155,1734904243189,-1042.08,0.00019452,2]
[346350156,1734904243198,-500.0,0.00019452,2]
[346350157,1734904243208,-14569.17,0.00019452,2]
[346350158,1734904243216,-666.94,0.00019452,2]
[346350159,1734904243226,-500.0,0.00019452,2]
[346350160,1734904243235,-500.0,0.00019452,2]
[346350161,1734904243244,-712.03,0.00019452,2]
[346350162,1734904243253,-3234.64,0.00019452,2]
[346350163,1734904243262,-1003.28,0.00019452,2]
[346350164,1734904243271,-1116.31,0.00019452,2]
[346350165,1734904243281,-500.0,0.00019452,2]
[346350166,1734904243290,-1582.19,0.00019452,2]
[346350167,1734904243300,-500.0,0.00019452,2]
[346350168,1734904243309,-588.64,0.00019452,2]
[346350169,1734904243318,-500.0,0.00019452,2]
[346350170,1734904243328,-772.61,0.00019452,2]
[346350171,1734904243337,-2369.92,0.00019452,2]
[346350172,1734904243346,-1789.21,0.00019452,2]
[346350173,1734904243355,-1113.86,0.00019452,2]
[346350174,1734904243364,-250.03,0.00019452,2]
[346350175,1734904243373,-535.4,0.00019452,2]
[346350176,1734904243382,-624.92,0.00019452,2]
[346350177,1734904243391,-15358.25,0.00019452,2]
[346350178,1734904243402,-3406.04,0.00019452,2]
[346350179,1734904243412,-500.0,0.00019452,2]
[346350180,1734904243420,-1535.8,0.00019452,2]
[346350181,1734904243430,-820.08,0.00019452,2]
[346350182,1734904243439,-500.0,0.00019452,2]
[346350183,1734904243449,-500.0,0.00019452,2]
[346350184,1734904243458,-2169.19,0.00019452,2]
[346350185,1734904243468,-500.0,0.00019452,2]
[346350186,1734904243477,-500.0,0.00019452,2]
[346350187,1734904243487,-500.0,0.00019452,2]
[346350188,1734904243496,-500.0,0.00019452,2]
[346350189,1734904243505,-1200.64,0.00019452,2]
[346350190,1734904243515,-787.87,0.00019452,2]
[346350191,1734904243524,-1384.28,0.00019452,2]
[346350192,1734904243533,-500.0,0.00019452,2]
[346350193,1734904243543,-1393.16,0.00019452,2]
[346350194,1734904243552,-1559.2,0.00019452,2]
[346350195,1734904243561,-500.0,0.00019452,2]
[346350196,1734904243570,-500.0,0.00019452,2]
[346350197,1734904243580,-500.0,0.00019452,2]
[346350198,1734904243589,-500.0,0.00019452,2]
[346350199,1734904243599,-500.0,0.00019452,2]
[346350200,1734904243608,-802.29,0.00019452,2]
[346350201,1734904243617,-1019.72,0.00019452,2]
[346350202,1734904243626,-3615.45,0.00019452,2]
[346350203,1734904243635,-500.0,0.00019452,2]
[346350204,1734904243644,-500.0,0.00019452,2]
[346350205,1734904243653,-500.0,0.00019452,2]
[346350206,1734904243662,-500.0,0.00019452,2]
[346350207,1734904243672,-500.0,0.00019452,2]
[346350208,1734904243681,-3299.65,0.00019452,2]
[346350209,1734904243690,-871.91,0.00019452,2]
[346350210,1734904243699,-500.0,0.00019452,2]
[346350211,1734904243709,-500.0,0.00019452,2]
[346350212,1734904243717,-1115.9,0.00019452,2]
[346350213,1734904243727,-500.0,0.00019452,2]
[346350214,1734904243736,-1779.67,0.00019452,2]
[346350215,1734904243745,-3027.82,0.00019452,2]
[346350216,1734904243754,-3956.61,0.00019452,2]
[346350217,1734904243763,-500.0,0.00019452,2]
[346350218,1734904243772,-4670.87,0.00019452,2]
[346350219,1734904243781,-1583.66,0.00019452,2]
[346350220,1734904243790,-2504.5,0.00019452,2]
[346350221,1734904243799,-500.0,0.00019452,2]
[346350222,1734904243808,-500.0,0.00019452,2]
[346350223,1734904243817,-500.0,0.00019452,2]
[346350224,1734904243826,-500.0,0.00019452,2]
[346350225,1734904243835,-508.89,0.00019452,2]
[346350226,1734904243844,-500.0,0.00019452,2]
[346350227,1734904243852,-5645.17,0.00019452,2]
[346350228,1734904243861,-2005.93,0.00019452,2]
[346350229,1734904243872,-9585.12,0.00019452,2]
[346350230,1734904243881,-800.5,0.00019452,2]
[346350231,1734904243891,-681.33,0.00019452,2]
[346350232,1734904243901,-500.0,0.00019452,2]
[346350233,1734904243910,-1000.0,0.00019452,2]
[346350234,1734904243920,-1418.35,0.00019452,2]
[346350235,1734904243929,-4374.55,0.00019452,2]
[346350236,1734904243938,-1049.76,0.00019452,2]
[346350237,1734904243948,-500.0,0.00019452,2]
[346350238,1734904243957,-884.28,0.00019452,2]
[346350239,1734904243966,-1410.47,0.00019452,2]
[346350240,1734904243976,-500.0,0.00019452,2]
[346350241,1734904243985,-500.0,0.00019452,2]
[346350242,1734904243997,-3328.51,0.00019452,2]
[346350243,1734904244007,-500.0,0.00019452,2]
[346350244,1734904244015,-2276.9,0.00019452,2]
[346350245,1734904244026,-2876.91,0.00019452,2]
[346350246,1734904244035,-1257.59,0.00019452,2]
[346350247,1734904244046,-762.53,0.00019452,2]
[346350248,1734904244055,-2679.05,0.00019452,2]
[346350249,1734904244064,-1159.59,0.00019452,2]
[346350250,1734904244075,-2343.35,0.00019452,2]
[346350251,1734904244085,-500.0,0.00019452,2]
[346350252,1734904244094,-1461.87,0.00019452,2]
[346350253,1734904244103,-500.0,0.00019452,2]
[346350254,1734904244112,-1830.93,0.00019452,2]
[346350255,1734904244132,-543.79,0.00019452,2]
[346350256,1734904244142,-500.0,0.00019452,2]
[346350257,1734904244151,-873.48,0.00019452,2]
[346350258,1734904244161,-500.0,0.00019452,2]
[346350259,1734904244171,-500.0,0.00019452,2]
[346350260,1734904244181,-2106.53,0.00019452,2]
[346350261,1734904244191,-6973.64,0.00019452,2]
[346350262,1734904244201,-500.0,0.00019452,2]
[346350263,1734904244210,-470.57483402,0.00019452,2]
[346350264,1734904244219,-642.42,0.00019452,2]
[346350265,1734904244229,-759.54,0.00019452,2]
[346350266,1734904244238,-500.0,0.00019452,2]
[346350267,1734904244247,-500.0,0.00019452,2]
[346350268,1734904244256,-500.0,0.00019452,2]
[346350269,1734904244266,-515.7,0.00019452,2]
[346350270,1734904244280,-791.71,0.00019452,2]
[346350272,1734904244290,-592.49,0.00019452,2]
[346350274,1734904244299,-893.89,0.00019452,2]
[346350276,1734904244309,-500.0,0.00019452,2]
[346350278,1734904244319,-500.0,0.00019452,2]
[346350279,1734904244328,-1432.83,0.00019452,2]
[346350280,1734904244337,-500.0,0.00019452,2]
[346350281,1734904244347,-1088.4,0.00019452,2]
[346350282,1734904244356,-500.0,0.00019452,2]
[346350283,1734904244365,-500.0,0.00019452,2]
[346350284,1734904244374,-500.0,0.00019452,2]
[346350285,1734904244384,-1058.69,0.00019452,2]
[346350286,1734904244393,-1712.94,0.00019452,2]
[346350287,1734904244404,-500.0,0.00019452,2]
[346350288,1734904244413,-980.04,0.00019452,2]
[346350289,1734904244423,-500.0,0.00019452,2]
[346350290,1734904244432,-500.0,0.00019452,2]
[346350291,1734904244441,-1841.8,0.00019452,2]
[346350292,1734904244451,-500.0,0.00019452,2]
[346350293,1734904244460,-1628.46,0.00019452,2]
[346350294,1734904244470,-500.0,0.00019452,2]
[346350295,1734904244479,-3366.22,0.00019452,2]
[346350296,1734904244489,-634.8,0.00019452,2]
[346350297,1734904244498,-2173.05,0.00019452,2]
[346350298,1734904244507,-797.50604326,0.00019467,2]
[346350299,1734904244516,-797.50604326,0.00019511,2]
[346350300,1734904244529,-363.61007425,0.00019535,2]
[346350301,1734904244539,-797.50604326,0.00019554,2]
[346350302,1734904244549,-797.50604326,0.00019597,2]
[346350303,1734904244558,-363.61007425,0.00019626,2]
[346350304,1734904244567,-797.50604326,0.0001964,2]
[346350305,1734904244576,-797.50604326,0.00019684,2]
[346350306,1734904244586,-363.61007425,0.00019717,2]
[346350307,1734904244596,-695.9,0.00019725,2]
[346350308,1734904244606,-1884.0,0.00019726,2]
[346350309,1734904244618,-500.0,0.00019726,2]
[346350310,1734904244628,-28049.83468795,0.00019726,2]
[346350311,1734904244637,-500.0,0.00019726,2]
[346350312,1734904244647,-500.0,0.00019726,2]
[346350313,1734904244656,-500.0,0.00019726,2]
[346350314,1734904244666,-500.0,0.00019726,2]
[346350315,1734904244676,-2751.59,0.00019726,2]
[346350316,1734904244686,-413.98179204,0.00019726,2]
[346350317,1734904244695,-783.669869,0.00019726,2]
[346350318,1734904244705,-1319.625773,0.00019726,2]
[346350319,1734904244715,-500.0,0.00019726,2]
[346350320,1734904244901,-500.0,0.00019726,2]
[346350321,1734904244912,-500.0,0.00019726,2]
[346350322,1734904244923,-500.0,0.00019726,2]
[346350323,1734904244932,-500.0,0.00019726,2]
[346350324,1734904244942,-500.0,0.00019726,2]
[346350325,1734904244952,-500.0,0.00019726,2]
[346350326,1734904244962,-500.0,0.00019726,2]
[346350327,1734904244972,-500.0,0.00019726,2]
[346350328,1734904244981,-500.0,0.00019726,2]
[346350329,1734904244992,-500.0,0.00019726,2]
[346350330,1734904245004,-500.0,0.00019726,2]
[346350331,1734904245014,-500.0,0.00019726,2]
[346350332,1734904245025,-500.0,0.00019726,2]
[346350333,1734904245034,-272.60930933,0.00019726,2]
[346350334,1734904245045,-500.0,0.00019726,2]
[346350335,1734904245055,-500.0,0.00019726,2]
[346350336,1734904245064,-500.0,0.00019726,2]
[346350337,1734904245075,-500.0,0.00019726,2]
[346350338,1734904245084,-500.0,0.00019726,2]
[346350339,1734904245094,-436.59,0.00019726,2]
[346350340,1734904245104,-1474.22,0.00019726,2]
[346350341,1734904245113,-500.0,0.00019726,2]
[346350342,1734904245123,-500.0,0.00019726,2]
[346350343,1734904245132,-500.0,0.00019726,2]
[346350344,1734904245142,-500.0,0.00019726,2]
[346350345,1734904245152,-500.0,0.00019726,2]
[346350346,1734904245162,-791.89,0.00019726,2]
[346350347,1734904245172,-500.0,0.00019726,2]
[346350348,1734904245182,-500.0,0.00019726,2]
[346350349,1734904245191,-500.0,0.00019726,2]
[346350350,1734904245202,-500.0,0.00019726,2]
[346350351,1734904245212,-500.0,0.00019726,2]
[346350352,1734904245222,-500.0,0.00019726,2]
[346350353,1734904245231,-500.0,0.00019726,2]
[346350354,1734904245241,-500.0,0.00019726,2]
[346350355,1734904245251,-500.0,0.00019726,2]
[346350356,1734904245260,-500.0,0.00019726,2]
[346350357,1734904245269,-500.0,0.00019726,2]
[346350358,1734904245282,-613.26,0.00019726,2]
[346350359,1734904245292,-500.0,0.00019726,2]
[346350360,1734904245301,-500.0,0.00019726,2]
[346350361,1734904245311,-460.86594901,0.00019726,2]
[346350362,1734904245320,-155.56150465,0.00019726,2]
[346350363,1734904245330,-500.0,0.00019726,2]
[346350364,1734904245339,-500.0,0.00019726,2]
[346350365,1734904245348,-659.87,0.00019726,2]
[346350366,1734904245358,-500.0,0.00019726,2]
[346350367,1734904245367,-500.0,0.00019726,2]
[346350368,1734904245376,-561.63,0.00019726,2]
[346350369,1734904245386,-500.0,0.00019726,2]
[346350370,1734904245395,-500.0,0.00019726,2]